bitfinex-derivatives/quotes_SOLF0:USTF0_20250101
["timestamp","ask_amount","ask_price","bid_price","bid_amount"]
[1735718080016,2.6331,190.3,190.27,4.15734239]
[1735718080213,2.6331,190.3,190.26,2.6335]
[1735718080421,2.6331,190.3,190.27,4.15733339]
[1735718080621,2.6331,190.3,190.26,2.6335]
[1735718080925,2.6331,190.3,190.27,4.1573754]
[1735718081119,2.6331,190.3,190.26,2.6335]
[1735718081321,2.6331,190.3,190.27,4.15722995]
[1735718081522,2.6331,190.3,190.26,2.6335]
[1735718081723,2.6331,190.3,190.27,4.15719091]
[1735718081922,2.6331,190.3,190.26,2.6335]
[1735718082121,2.6331,190.3,190.27,4.15715693]
[1735718082323,2.6331,190.3,190.26,2.6335]
[1735718082521,2.6331,190.3,190.27,4.15713347]
[1735718082722,2.6331,190.3,190.26,2.6335]
[1735718082924,2.6331,190.3,190.27,4.15744265]
[1735718083125,2.6331,190.3,190.26,2.6335]
[1735718083327,2.6331,190.3,190.27,4.15750038]
[1735718083528,2.6331,190.3,190.26,2.6335]
[1735718083727,2.6331,190.3,190.27,4.15748328]
[1735718083927,2.6331,190.3,190.26,2.6335]
[1735718084227,2.6331,190.3,190.27,4.15736296]
[1735718084528,2.6331,190.3,190.26,2.6335]
[1735718084827,2.6331,190.3,190.27,4.15743254]
[1735718085023,2.6331,190.3,190.26,2.6335]
[1735718085224,2.6331,190.3,190.27,4.15746652]
[1735718085526,2.6331,190.3,190.26,2.6335]
[1735718085726,2.6331,190.3,190.27,4.15729734]
[1735718085918,2.6331,190.3,190.26,2.6335]
[1735718086118,2.6331,190.3,190.27,4.15744003]
[1735718086420,2.6331,190.3,190.26,2.6335]
[1735718086619,2.6331,190.3,190.27,4.15767697]
[1735718086823,2.6331,190.3,190.26,2.6335]
[1735718087127,2.6331,190.3,190.27,4.15766858]
[1735718087324,2.6331,190.3,190.26,2.6335]
[1735718087524,2.6331,190.3,190.27,4.15766018]
[1735718087820,2.6331,190.3,190.26,2.6335]
[1735718088025,2.6331,190.3,190.27,4.15766018]
[1735718088226,2.6331,190.3,190.26,2.6335]
[1735718088427,2.6331,190.3,190.27,4.15788849]
[1735718088621,2.6331,190.3,190.26,2.6335]
[1735718088821,2.6331,190.3,190.27,4.1579206]
[1735718089030,2.6331,190.3,190.26,2.6335]
[1735718089231,2.6331,190.3,190.27,4.15793135]
[1735718089428,2.6331,190.3,190.26,2.6335]
[1735718089633,2.6331,190.3,190.27,4.15797311]
[1735718089833,2.6331,190.3,190.26,2.6335]
[1735718090127,8.71071032,190.41,190.27,4.15797311]
[1735718090331,8.50638746,190.33,190.28,4.15781755]
[1735718090532,8.50638746,190.33,190.26,2.6335]
[1735718090732,8.50638746,190.33,190.27,4.15775864]
[1735718091037,8.50638746,190.33,190.28,4.15775864]
[1735718091235,2.633,190.31,190.26,2.6335]
[1735718091429,2.633,190.31,190.27,4.15752958]
[1735718091732,2.633,190.31,190.28,4.15752958]
[1735718091932,2.633,190.31,190.26,2.6335]
[1735718092135,2.633,190.31,190.27,4.1574483]
[1735718092433,2.633,190.31,190.28,4.1574483]
[1735718092633,2.633,190.31,190.26,2.6335]
[1735718092833,2.6327,190.33,190.27,15.29722691]
[1735718093039,8.50638746,190.34,190.28,4.15743945]
[1735718093337,2.54704159,190.35,190.29,4.15630208]
[1735718093338,2.6329,190.31,190.29,4.15630208]
[1735718093634,2.6329,190.31,190.26,1.5225]
[1735718093834,2.6329,190.31,190.27,4.15551202]
[1735718094031,2.6329,190.31,190.28,4.15551202]
[1735718094231,2.6329,190.31,190.29,4.15551202]
[1735718094435,2.54704159,190.35,190.27,61.89800613]
[1735718094734,2.6329,190.31,190.28,4.15503937]
[1735718094931,2.6329,190.31,190.29,4.15503937]
[1735718095136,2.6329,190.31,190.27,61.89800613]
[1735718095332,2.6329,190.31,190.28,4.15508304]
[1735718095534,2.6329,190.31,190.29,4.15508304]
[1735718095736,2.6329,190.31,190.27,61.89800613]
[1735718095938,2.6329,190.31,190.28,4.15467987]
[1735718096235,2.6329,190.31,190.29,4.15467987]
[1735718096435,2.6329,190.31,190.27,61.89800613]
[1735718096637,2.6329,190.31,190.28,4.15428736]
[1735718096934,2.6329,190.31,190.27,61.89800613]
[1735718096935,2.6329,190.31,190.29,4.15428736]
[1735718097136,2.6329,190.31,190.27,61.89800613]
[1735718097334,2.6329,190.31,190.26,7.056]
[1735718097335,2.6329,190.31,190.28,4.15423694]
[1735718097526,2.6329,190.31,190.29,4.15423694]
[1735718097832,2.6329,190.31,190.28,61.89800613]
[1735718098031,2.6329,190.31,190.29,4.1538515]
[1735718098234,2.6329,190.31,190.28,61.89800613]
[1735718100642,2.6329,190.31,190.26,4.156]
[1735718100837,11.13938746,190.3,190.27,4.15412671]
[1735718101139,11.13938746,190.3,190.28,4.15412671]
[1735718101337,2.633,190.3,190.26,4.156]
[1735718101537,2.6329,190.31,190.27,4.15356513]
[1735718101840,2.6329,190.31,190.28,4.15356513]
[1735718102031,2.6329,190.31,190.26,4.156]
[1735718102236,2.6329,190.31,190.27,4.15348498]
[1735718102542,2.6329,190.31,190.28,4.15348498]
[1735718102839,2.6329,190.31,190.26,4.156]
[1735718103041,2.6329,190.31,190.27,4.15350845]
[1735718103240,2.6329,190.31,190.28,4.15350845]
[1735718103443,2.6331,190.3,190.26,2.6335]
[1735718103647,8.50638746,190.32,190.27,4.15339694]
[1735718103944,2.54704159,190.35,190.28,4.15348865]
[1735718104138,5.17944159,190.35,190.3,2.633]
[1735718104340,5.17944159,190.35,190.31,4.15348865]
[1735718104538,5.17944159,190.35,190.3,2.633]
[1735718104841,5.17944159,190.35,190.31,4.15050138]
[1735718105040,5.17944159,190.35,190.3,2.633]
[1735718105344,5.17944159,190.35,190.31,4.14956041]
[1735718105642,2.54704159,190.35,190.3,2.633]
[1735718105839,2.6325,190.34,190.31,4.14924506]
[1735718106037,2.6325,190.34,190.3,2.633]
[1735718106235,2.6325,190.34,190.29,8.50638746]
[1735718106236,2.6325,190.34,190.29,11.13948746]
[1735718106441,2.6325,190.34,190.3,4.14867165]
[1735718106643,2.6325,190.34,190.29,11.13948746]
[1735718107042,2.6325,190.34,190.3,4.14879582]
[1735718107246,2.6325,190.34,190.29,11.13948746]
[1735718107446,11.13888746,190.34,190.3,4.14821682]
[1735718107641,11.13888746,190.34,190.29,11.13948746]
[1735718107846,11.13888746,190.34,190.3,4.14833578]
[1735718108148,11.13888746,190.34,190.29,11.13948746]
[1735718108343,11.13888746,190.34,190.3,4.14795368]
[1735718108543,11.13888746,190.34,190.29,11.13948746]
[1735718108746,11.13888746,190.34,190.3,4.14806879]
[1735718109049,11.13888746,190.34,190.29,11.13948746]
[1735718109250,11.13888746,190.34,190.3,4.14816519]
[1735718109450,11.13888746,190.34,190.29,11.13948746]
[1735718109652,11.13888746,190.34,190.3,4.14816911]
[1735718109951,11.13888746,190.34,190.29,11.13948746]
[1735718110152,11.13888746,190.34,190.3,4.1482702]
[1735718110348,11.13888746,190.34,190.29,11.13948746]
[1735718110553,11.13888746,190.34,190.3,4.14793285]
[1735718110750,11.13888746,190.34,190.29,11.13948746]
[1735718110951,2.6326,190.33,190.3,4.1478825]
[1735718111147,2.6326,190.33,190.29,11.13948746]
[1735718111346,2.6326,190.33,190.3,4.1475586]
[1735718111553,2.6326,190.33,190.29,11.13948746]
[1735718111854,2.6326,190.33,190.3,4.14755574]
[1735718112051,2.6326,190.33,190.29,11.13948746]
[1735718112252,2.6326,190.33,190.3,4.14727653]
[1735718112453,2.6326,190.33,190.29,11.13948746]
[1735718112653,2.6326,190.33,190.3,4.14728372]
[1735718112855,2.6326,190.33,190.29,11.13948746]
[1735718113153,2.6326,190.33,190.3,4.14754713]
[1735718113356,2.6326,190.33,190.29,11.13948746]
[1735718113555,2.6326,190.33,190.3,4.14737637]
[1735718113855,11.13888746,190.34,190.29,11.13948746]
[1735718114056,11.13888746,190.34,190.3,4.14703342]
[1735718114259,11.13888746,190.34,190.29,11.13948746]
[1735718114446,11.13888746,190.34,190.3,4.14669886]
[1735718114647,11.13888746,190.34,190.29,11.13948746]
[1735718114851,11.13888746,190.34,190.3,4.14669886]
[1735718115052,11.13888746,190.34,190.29,11.13948746]
[1735718115256,11.13888746,190.34,190.3,4.14642934]
[1735718115447,11.13888746,190.34,190.29,11.13948746]
[1735718115654,11.13888746,190.34,190.3,4.146398]
[1735718115858,11.13888746,190.34,190.29,11.13948746]
[1735718116356,11.13888746,190.34,190.3,4.14640274]
[1735718116357,2.6326,190.33,190.3,4.14640274]
[1735718116557,2.6326,190.33,190.29,11.13948746]
[1735718116757,2.6326,190.33,190.3,4.14612915]
[1735718116957,2.6326,190.33,190.29,11.13948746]
[1735718117157,2.6326,190.33,190.3,4.14675026]
[1735718117359,2.6326,190.33,190.29,11.13948746]
[1735718117659,2.6326,190.33,190.3,4.14648976]
[1735718117960,2.6326,190.33,190.29,11.13948746]
[1735718118259,2.6326,190.33,190.3,4.14667097]
[1735718118460,2.6326,190.33,190.29,11.13948746]
[1735718118662,2.6326,190.33,190.3,4.14644159]
[1735718118957,2.6326,190.33,190.29,11.13948746]
[1735718119161,2.6326,190.33,190.3,4.14646863]
[1735718119364,2.6326,190.33,190.29,11.13948746]
[1735718119559,2.6326,190.33,190.3,4.1463838]
[1735718119763,2.6326,190.33,190.29,11.13948746]
[1735718119958,2.6326,190.33,190.3,4.1463707]
[1735718120160,2.6326,190.33,190.29,11.40638746]
[1735718120363,2.6326,190.33,190.3,6.77922743]
[1735718120563,2.6326,190.33,190.3,2.633]
[1735718126471,11.05342905,190.35,190.3,2.633]
[1735718126671,2.6325,190.34,190.3,2.633]
[1735718129967,11.13898746,190.33,190.29,5.5332]
[1735718130164,8.50638746,190.33,190.28,62.42753267]
[1735718130471,8.50638746,190.33,190.29,4.14765198]
[1735718130672,2.6328,190.32,190.28,65.06073267]
[1735718130876,2.6328,190.32,190.29,4.14776947]
[1735718131170,2.6328,190.32,190.28,62.42753267]
[1735718131369,2.6328,190.32,190.29,4.14861645]
[1735718131569,2.6328,190.32,190.28,2.6333]
[1735718131768,2.6328,190.32,190.29,4.1486468]
[1735718131972,2.6328,190.32,190.28,2.6333]
[1735718132169,2.6328,190.32,190.29,4.14863709]
[1735718132372,2.6328,190.32,190.28,2.6333]
[1735718132578,2.6328,190.32,190.29,4.1490505]
[1735718132875,2.6328,190.32,190.28,2.6333]
[1735718133071,2.6328,190.32,190.29,4.1490505]
[1735718133274,2.6328,190.32,190.28,2.6333]
[1735718133475,2.6328,190.32,190.29,4.14952241]
[1735718133674,2.6328,190.32,190.28,2.6333]
[1735718133972,2.6328,190.32,190.29,4.14952241]
[1735718134175,2.6328,190.32,190.28,2.6333]
[1735718134375,2.6328,190.32,190.29,4.1496325]
[1735718134570,2.6328,190.32,190.28,2.6333]
[1735718134771,2.6328,190.32,190.29,4.15003689]
[1735718134971,2.6328,190.32,190.29,2.6332]
[1735718136075,11.13898746,190.33,190.29,2.6332]
[1735718138169,2.6326,190.33,190.3,6.78432453]
[1735718138373,2.54704159,190.35,190.27,8.50638746]
[1735718138573,5.17934159,190.35,190.29,8.50638746]
[1735718138768,5.17934159,190.35,190.31,2.6328]
[1735718138976,5.17934159,190.35,190.29,8.50638746]
[1735718139177,2.54704159,190.35,190.3,4.15034998]
[1735718139375,2.54704159,190.35,190.31,4.15029445]
[1735718139577,2.54704159,190.35,190.32,4.15029445]
[1735718139879,2.54704159,190.35,190.31,8.50638746]
[1735718140078,2.54704159,190.35,190.33,2.6325]
[1735718140777,2.54704159,190.35,190.31,8.50638746]
[1735718140778,11.05342905,190.35,190.28,7.27679255]
[1735718140975,8.50638746,190.32,190.29,4.15074377]
[1735718141180,8.50638746,190.32,190.3,4.15074377]
[1735718141376,8.50638746,190.32,190.28,29.22719327]
[1735718141576,8.50638746,190.32,190.29,4.15146749]
[1735718141776,8.50638746,190.32,190.3,4.15146749]
[1735718141981,8.50638746,190.32,190.28,29.22719327]
[1735718142180,8.50638746,190.32,190.29,4.1516761]
[1735718142384,8.50638746,190.32,190.26,70.96528936]
[1735718142582,11.13918746,190.32,190.27,6.78613607]
[1735718142785,11.13918746,190.32,190.28,4.15273607]
[1735718142985,11.13918746,190.32,190.27,2.6334]
[1735718143175,11.13918746,190.32,190.28,4.15277092]
[1735718143378,11.13918746,190.32,190.27,2.6334]
[1735718143576,11.13918746,190.32,190.28,4.1527979]
[1735718143786,11.13918746,190.32,190.27,2.6334]
[1735718143985,2.6328,190.32,190.28,4.15276398]
[1735718144187,8.50638746,190.33,190.28,2.6332]
[1735718144887,11.13908746,190.33,190.28,2.6332]
[1735718145179,8.50638746,190.33,190.28,2.6332]
[1735718145376,8.50638746,190.33,190.29,4.15189877]
[1735718145583,8.50638746,190.33,190.28,2.6332]
[1735718145785,8.50638746,190.33,190.29,4.15184863]
[1735718146084,8.50638746,190.33,190.28,2.6332]
[1735718146286,8.50638746,190.33,190.29,4.15216475]
[1735718146584,8.50638746,190.33,190.28,2.6332]
[1735718146881,8.50638746,190.33,190.29,4.15217993]
[1735718147076,11.13908746,190.33,190.28,2.6332]
[1735718147275,11.13908746,190.33,190.29,4.15258567]
[1735718147475,11.13908746,190.33,190.28,2.6332]
[1735718147683,11.13908746,190.33,190.29,4.15259828]
[1735718147885,8.50638746,190.33,190.28,2.6332]
[1735718148080,2.6328,190.32,190.29,4.15263222]
[1735718148388,2.6328,190.32,190.28,2.6332]
[1735718148585,2.6328,190.32,190.29,4.15225171]
[1735718148785,2.6328,190.32,190.28,2.6332]
[1735718149086,2.6328,190.32,190.29,4.15106091]
[1735718149285,2.6328,190.32,190.28,2.6332]
[1735718149586,2.6328,190.32,190.29,4.1506456]
[1735718149783,2.6328,190.32,190.28,2.6332]
[1735718149984,2.6328,190.32,190.29,4.15071623]
[1735718150288,2.6328,190.32,190.26,66.32199681]
[1735718150488,2.6328,190.32,190.27,4.15051122]
[1735718150684,2.6328,190.32,190.28,4.15051122]
[1735718150885,8.50638746,190.33,190.26,66.32199681]
[1735718151185,2.6329,190.31,190.27,4.14942716]
[1735718151387,2.6329,190.31,190.28,4.14942716]
[1735718151585,2.6329,190.31,190.26,66.32199681]
[1735718151887,2.6329,190.31,190.27,4.14925255]
[1735718152082,2.6329,190.31,190.28,4.14925255]
[1735718152288,2.6329,190.31,190.26,66.32199681]
[1735718152485,2.6329,190.31,190.27,4.14893468]
[1735718152686,2.6329,190.31,190.28,4.14893468]
[1735718152886,2.6329,190.31,190.26,66.32199681]
[1735718153085,2.6329,190.31,190.27,4.14900821]
[1735718153287,2.6329,190.31,190.28,4.14900821]
[1735718153487,2.6329,190.31,190.26,66.32199681]
[1735718153687,2.6329,190.31,190.27,4.1488365]
[1735718153888,2.6329,190.31,190.28,4.1488365]
[1735718154088,2.6329,190.31,190.26,66.32199681]
[1735718154288,2.6329,190.31,190.27,4.14861386]
[1735718154484,2.6329,190.31,190.28,4.14861386]
[1735718154685,2.6329,190.31,190.26,66.32199681]
[1735718154881,2.6329,190.31,190.27,4.14863264]
[1735718155189,2.6329,190.31,190.28,4.14863264]
[1735718155384,2.6329,190.31,190.26,4.2015]
[1735718155588,2.6329,190.31,190.27,4.14846289]
[1735718155789,2.6329,190.31,190.28,4.14846289]
[1735718156087,2.6329,190.31,190.26,4.2015]
[1735718156286,2.6329,190.31,190.27,4.14831338]
[1735718156490,2.6329,190.31,190.28,4.14831338]
[1735718156685,2.6329,190.31,190.26,4.2015]
[1735718156886,2.6329,190.31,190.27,4.14827829]
[1735718157088,2.6329,190.31,190.28,4.14827829]
[1735718157288,2.6329,190.31,190.26,4.2015]
[1735718157490,2.6329,190.31,190.27,4.14814701]
[1735718157695,2.6329,190.31,190.28,4.14814701]
[1735718157993,2.6329,190.31,190.26,4.2015]
[1735718158295,2.6329,190.31,190.27,4.14718175]
[1735718158493,2.6329,190.31,190.28,4.14718175]
[1735718158694,2.6329,190.31,190.26,4.2015]
[1735718158896,2.6329,190.31,190.27,4.14688484]
[1735718159192,2.6329,190.31,190.28,4.14688484]
[1735718159390,2.6329,190.31,190.26,4.2015]
[1735718159594,2.6329,190.31,190.27,4.14688539]
[1735718159792,2.6329,190.31,190.28,4.14688539]
[1735718159989,2.6329,190.31,190.26,4.2015]
[1735718160194,2.6329,190.31,190.27,4.14689969]
[1735718160390,2.6329,190.31,190.28,4.14689969]
[1735718160595,2.6329,190.31,190.26,4.2015]
[1735718160892,2.6329,190.31,190.27,4.14636382]
[1735718161098,2.6329,190.31,190.28,4.14636382]
[1735718161298,2.6329,190.31,190.26,4.2015]
[1735718161501,2.6329,190.31,190.27,4.14628054]
[1735718161799,2.6329,190.31,190.28,4.14628054]
[1735718161999,2.6329,190.31,190.26,4.2015]
[1735718162200,2.6329,190.31,190.27,4.14662742]
[1735718162404,2.6329,190.31,190.28,4.14662742]
[1735718162599,2.6329,190.31,190.26,4.2015]
[1735718162795,2.6329,190.31,190.27,4.14656773]
[1735718162998,2.6329,190.31,190.28,4.14656773]
[1735718163200,2.6329,190.31,190.26,4.2015]
[1735718163499,2.6329,190.31,190.27,4.14680695]
[1735718163698,2.6329,190.31,190.28,4.14680695]
[1735718163897,2.6329,190.31,190.26,4.2015]
[1735718164101,2.6329,190.31,190.27,4.14677788]
[1735718164303,2.6329,190.31,190.28,4.14677788]
[1735718164503,2.6329,190.31,190.26,4.2015]
[1735718164802,2.6329,190.31,190.27,4.14687164]
[1735718165002,2.6329,190.31,190.28,4.14687164]
[1735718165209,2.6329,190.31,190.26,4.2015]
[1735718165408,2.6329,190.31,190.27,4.14685386]
[1735718165611,2.6329,190.31,190.28,4.14685386]
[1735718165904,2.6329,190.31,190.26,4.2015]
[1735718166205,2.6329,190.31,190.27,4.14683937]
[1735718166405,2.6329,190.31,190.28,4.14683937]
[1735718166607,2.6329,190.31,190.26,4.2015]
[1735718166808,2.6329,190.31,190.27,4.14706499]
[1735718167003,5.44704159,190.35,190.28,4.14706499]
[1735718167213,8.50638746,190.33,190.29,4.14673664]
[1735718167405,8.50638746,190.33,190.27,11.13968746]
[1735718167604,2.6328,190.32,190.28,4.14684909]
[1735718167809,2.6328,190.32,190.29,4.14684909]
[1735718168011,44.72561515,190.32,190.27,11.13968746]
[1735718168305,44.72561515,190.32,190.28,4.14688373]
[1735718168507,44.72561515,190.32,190.29,4.14688373]
[1735718168807,44.72561515,190.32,190.27,11.13968746]
[1735718169008,44.72561515,190.32,190.28,4.14697875]
[1735718169211,44.72561515,190.32,190.29,4.14697875]
[1735718169410,44.72561515,190.32,190.27,11.13968746]
[1735718169611,44.72561515,190.32,190.28,4.14721932]
[1735718169813,44.72561515,190.32,190.29,4.14721932]
[1735718170017,44.72561515,190.32,190.27,11.13968746]
[1735718170214,44.72561515,190.32,190.28,4.14730453]
[1735718170412,44.72561515,190.32,190.29,4.14730453]
[1735718170613,44.72561515,190.32,190.27,11.13968746]
[1735718170810,44.72561515,190.32,190.28,4.14742333]
[1735718171010,44.72561515,190.32,190.29,4.14742333]
[1735718171309,44.72561515,190.32,190.27,11.13968746]
[1735718171511,44.72561515,190.32,190.28,4.14768466]
[1735718171709,44.72561515,190.32,190.29,4.14768466]
[1735718171913,44.72561515,190.32,190.27,11.13968746]
[1735718172111,44.72561515,190.32,190.28,4.14764902]
[1735718172408,44.72561515,190.32,190.29,4.14699724]
[1735718172611,44.72561515,190.32,190.27,11.13968746]
[1735718172812,44.72561515,190.32,190.28,4.14694903]
[1735718173012,44.72561515,190.32,190.29,4.14694903]
[1735718173213,44.72561515,190.32,190.27,11.13968746]
[1735718173514,44.72561515,190.32,190.28,4.1472927]
[1735718173710,42.09281515,190.32,190.29,4.1472927]
[1735718174015,2.633,190.3,190.26,4.2016]
[1735718174209,2.633,190.3,190.27,4.14850456]
[1735718174411,2.633,190.3,190.28,4.14850456]
[1735718174606,2.633,190.3,190.26,4.2016]
[1735718174810,2.633,190.3,190.27,4.14842408]
[1735718175112,2.633,190.3,190.28,4.14842408]
[1735718175313,2.633,190.3,190.26,4.2016]
[1735718175515,2.633,190.3,190.27,4.14843685]
[1735718175712,2.633,190.3,190.28,4.14843685]
[1735718176016,2.633,190.3,190.26,4.2016]
[1735718176216,2.633,190.3,190.27,4.14842291]
[1735718176511,2.633,190.3,190.28,4.14842291]
[1735718176710,2.633,190.3,190.26,4.2016]
[1735718177019,2.633,190.3,190.27,4.14846966]
[1735718177212,2.633,190.3,190.28,4.14846966]
[1735718177410,2.633,190.3,190.26,4.2016]
[1735718177717,2.633,190.3,190.27,4.14932868]
[1735718177908,2.633,190.3,190.28,4.14932868]
[1735718178110,2.633,190.3,190.26,4.2016]
[1735718178316,2.633,190.3,190.27,4.14940348]
[1735718178515,2.633,190.3,190.28,4.14940348]
[1735718178815,2.633,190.3,190.26,4.2016]
[1735718179016,2.633,190.3,190.27,4.14931903]
[1735718179317,2.633,190.3,190.28,4.14931903]
[1735718179519,2.633,190.3,190.26,4.2016]
[1735718179713,2.633,190.3,190.27,4.14863435]
[1735718179914,2.633,190.3,190.28,4.14863435]
[1735718180114,2.633,190.3,190.26,4.2016]
[1735718180316,2.633,190.3,190.27,4.14863167]
[1735718180517,2.633,190.3,190.28,4.14863167]
[1735718180816,2.633,190.3,190.26,4.2016]
[1735718181012,2.633,190.3,190.27,4.1485812]
[1735718181315,2.633,190.3,190.28,4.1485812]
[1735718181519,2.633,190.3,190.26,4.2016]
[1735718181817,2.633,190.3,190.27,4.14851363]
[1735718182016,2.633,190.3,190.28,4.14851363]
[1735718182211,2.633,190.3,190.26,4.2016]
[1735718182409,2.633,190.3,190.27,4.14845911]
[1735718182609,2.633,190.3,190.28,4.14845911]
[1735718182814,2.633,190.3,190.26,4.2016]
[1735718183015,2.633,190.3,190.27,4.14873759]
[1735718183216,2.633,190.3,190.28,4.14873759]
[1735718183417,2.633,190.3,190.26,4.2016]
[1735718183615,2.633,190.3,190.27,4.1484273]
[1735718183821,2.633,190.3,190.28,4.1484273]
[1735718184017,2.633,190.3,190.26,4.2016]
[1735718184218,8.50638746,190.31,190.27,4.14877541]
[1735718184420,2.6329,190.31,190.28,4.14877541]
[1735718184721,2.6329,190.31,190.29,4.14877541]
[1735718184917,2.6329,190.31,190.27,2.6333]
[1735718185118,2.6329,190.31,190.28,4.1468818]
[1735718185322,2.6329,190.31,190.29,4.1468818]
[1735718185525,2.6329,190.31,190.27,2.6333]
[1735718185723,2.6329,190.31,190.28,4.14804636]
[1735718186022,2.6329,190.31,190.29,4.14804636]
[1735718186225,2.6329,190.31,190.3,4.14804636]
[1735718186625,2.6329,190.31,190.27,2.6333]
[1735718186825,2.6329,190.31,190.28,4.1477441]
[1735718187020,2.6329,190.31,190.29,4.1477441]
[1735718187323,2.6329,190.31,190.3,4.14795971]
[1735718188524,2.6329,190.31,190.27,2.6333]
[1735718188721,2.6329,190.31,190.28,4.14812923]
[1735718188915,2.6329,190.31,190.29,4.14812923]
[1735718189118,2.6329,190.31,190.27,2.6333]
[1735718189317,2.6329,190.31,190.28,4.14810549]
[1735718189524,2.6329,190.31,190.29,4.14810549]
[1735718189827,2.6329,190.31,190.27,2.6333]
[1735718190126,2.6329,190.31,190.28,4.14805826]
[1735718190326,2.6329,190.31,190.27,2.6333]
[1735718190528,2.6329,190.31,190.28,4.148032]
[1735718190823,2.6329,190.31,190.29,4.14801848]
[1735718191018,2.6329,190.31,190.3,4.14801848]
[1735718199533,2.6329,190.31,190.3,4.14684061]
[1735718200230,2.6329,190.31,190.3,4.14684346]
[1735718201933,2.633,190.3,190.26,4.2016]
[1735718202134,2.633,190.3,190.27,4.14600189]
[1735718202338,2.633,190.3,190.28,4.14600189]
[1735718202632,2.633,190.3,190.29,4.14600189]
[1735718204638,44.72561515,190.32,190.29,4.14600189]
[1735718204830,44.72561515,190.32,190.3,4.14600189]
[1735718205035,44.72561515,190.32,190.31,4.14600189]
[1735718206133,42.09281515,190.32,190.31,4.14264872]
[1735718206333,44.72561515,190.32,190.31,4.14264872]
[1735718207333,42.09281515,190.32,190.27,8.50638746]
[1735718207539,42.09281515,190.32,190.29,11.13958746]
[1735718207738,42.09281515,190.32,190.3,4.14214189]
[1735718207939,42.09281515,190.32,190.31,4.14214189]
[1735718209135,42.09281515,190.32,190.31,4.14099484]
[1735718209837,42.09281515,190.32,190.31,4.14032857]
[1735718211342,42.09281515,190.32,190.3,2.633]
[1735718211542,42.09281515,190.32,190.31,4.13914055]
[1735718212345,44.72561515,190.32,190.31,4.13891194]
[1735718212545,50.59920261,190.32,190.27,7.27679255]
[1735718212739,50.59920261,190.32,190.28,4.13997204]
[1735718213041,50.59920261,190.32,190.29,4.13997204]
[1735718213342,50.59920261,190.32,190.27,7.27679255]
[1735718213638,2.633,190.31,190.28,4.13999723]
[1735718213844,42.09281515,190.32,190.29,4.13999723]
[1735718214040,42.09281515,190.32,190.3,4.13999723]
[1735718214344,42.09281515,190.32,190.26,11.40638746]
[1735718214543,42.09281515,190.32,190.27,4.13886338]
[1735718214842,42.09281515,190.32,190.28,4.13886338]
[1735718215042,42.09281515,190.32,190.29,4.13886338]
[1735718215240,42.09281515,190.32,190.26,11.40638746]
[1735718215444,44.72561515,190.32,190.28,2.6333]
[1735718215640,44.72561515,190.32,190.29,4.13892679]
[1735718215835,44.72561515,190.32,190.3,4.13892679]
[1735718216041,44.72561515,190.32,190.26,11.40638746]
[1735718216241,44.72561515,190.32,190.28,2.6332]
[1735718216440,44.72561515,190.32,190.29,4.13888684]
[1735718216641,44.72561515,190.32,190.3,4.13888684]
[1735718216842,44.72561515,190.32,190.28,2.6332]
[1735718217145,2.6329,190.31,190.29,4.13857543]
[1735718217347,2.6329,190.31,190.28,2.6332]
[1735718217644,2.6329,190.31,190.29,4.13878681]
[1735718217945,2.6329,190.31,190.28,2.6332]
[1735718218137,2.6329,190.31,190.29,4.1387334]
[1735718218341,2.6329,190.31,190.28,2.6332]
[1735718218542,2.6329,190.31,190.29,4.13876592]
[1735718218745,2.6329,190.31,190.28,2.6332]
[1735718219044,2.6329,190.31,190.29,4.13870034]
[1735718219237,50.59920261,190.32,190.28,2.6332]
[1735718219238,53.23200261,190.32,190.28,2.6332]
[1735718219439,50.59920261,190.32,190.29,4.13875698]
[1735718219641,50.59920261,190.32,190.25,69.23134079]
[1735718219847,2.6332,190.3,190.26,4.13894578]
[1735718220144,2.6332,190.3,190.27,4.13894578]
[1735718220345,2.6332,190.3,190.28,4.13894578]
[1735718220647,8.50638746,190.31,190.29,4.13894578]
[1735718220842,8.50638746,190.31,190.27,2.6334]
[1735718221044,42.09281515,190.32,190.28,4.13889877]
[1735718221243,42.09281515,190.32,190.29,4.13889877]
[1735718221450,42.09281515,190.32,190.25,77.73772825]
[1735718221745,42.09281515,190.32,190.26,4.13891479]
[1735718221945,42.09281515,190.32,190.27,4.13891479]